Cogmind - Beta 16 --- EXPLORER MODE // 2025.11.19 @ 11:04:05 Player: K.K.Y. Result: Destroyed by Y-45 Defender with Beam Rifle Performance ------------- Evolutions (2) 1000 Regions Visited (8) 1600 Robots Destroyed (56) 280 Value Destroyed (2255) 2255 Prototype IDs (33) 660 Alien Tech Used (0) 0 Bonus (1712) 1712 TOTAL SCORE: 7507 Bonus ------- Follower Combat Kills 44 Entered Garrisons 400 Used RIF Installer 1000 Aligned with FarCom 300 Friendly Fire -32 Cogmind --------- Core Integrity 0/550 Matter 283/300 Energy 91/100 System Corruption 9% Temperature Cool (9) Movement Core (450) Ox8 Location -8/Garrison Parts ------- > --- POWER (2) -------- (None) > --- PROPULSION (4) --- (None) > --- UTILITY (4) ------ Improved Heat Sink Large Storage Unit Modified TNC Hacking Suite > --- WEAPON (2) ------- Gauss Rifle > --- INVENTORY (15) --- High-capacity Storage Unit Improved Terrain Scanner Hardened Medium Armor Plating Hardened Medium Armor Plating Relay Coupler [Swarmer] (64) Relay Coupler [Cutter] (57) Relay Coupler [Sentry] (36) Relay Coupler [Demolisher] (28) Relay Coupler [Hunter] (20) Relay Coupler [Heavy] (29) Remote Datajack Mining Laser Plasma Cutter Powered Hammer Peak State ------------ > --- POWER ------------ Heavy Ion Engine Heavy Ion Engine > --- PROPULSION ------- Improved Hover Unit Aerolev Unit Gravmag System Combat Airjet > --- UTILITY ---------- Cryofiber Web Medium Storage Unit Experimental Sensor Array Modified TNC > --- WEAPON ----------- Heavy EM Shotgun Precision Beam Rifle > --- INVENTORY -------- Large Storage Unit High-capacity Storage Unit Improved Terrain Scanner Core Shielding Hardened Medium Armor Plating Improved EM Shotgun Heavy Particle Gun Mining Laser Plasma Cutter Powered Hammer [Rating: 50] Favorites ----------- Power Heavy Ion Engine Engine Heavy Ion Engine Power Core Micro Nuclear Core Propulsion VTOL Module Leg Aluminum Leg Hover Unit Gravmag System Flight Unit VTOL Module Utility Medium Storage Unit Device Experimental Sensor Array Storage Medium Storage Unit Processor Modified TNC Hackware Hacking Suite Protection Core Shielding Weapon Small Laser Energy Gun Small Laser Ballistic Gun Light Assault Rifle Special Weapon Mining Laser Impact Weapon Powered Hammer Slashing Weapon Blade Saw Build | -11 -10 -10 -10 -9 -8 -8 -8 -8 ------- Run | Yrd Mat Min Exi Min Mat Gar Mat Gar Slots Evolved 5 | . 1 . . . 4 . . . Power 1 | . . . . . 1 . . . Propulsion 2 | . 1 . . . 1 . . . Utility 2 | . . . . . 2 . . . Weapon . | . . . . . . . . . Parts Attached 60 | 2 8 2 3 4 16 16 6 3 Power 12 | . 1 . . 2 4 5 . . Engine 4 | . 1 . . . 3 . . . Core 8 | . . . . 2 1 5 . . Reactor . | . . . . . . . . . Propulsion 20 | . 5 . 3 2 3 4 3 . Treads . | . . . . . . . . . Leg 7 | . 2 . 2 1 . 2 . . Wheel . | . . . . . . . . . Hover 10 | . . . 1 1 3 2 3 . Flight 3 | . 3 . . . . . . . Utility 13 | . 1 1 . . 5 2 2 2 Device 6 | . . 1 . . 4 . 1 . Storage 3 | . 1 . . . . 1 1 . Processor 1 | . . . . . 1 . . . Hackware 2 | . . . . . . . . 2 Protection 1 | . . . . . . 1 . . Artifact . | . . . . . . . . . Weapon 15 | 2 1 1 . . 4 5 1 1 Energy Gun 10 | 1 1 1 . . 4 2 1 . Energy Cannon . | . . . . . . . . . Ballistic Gun 2 | 1 . . . . . . . 1 Ballistic Cannon . | . . . . . . . . . Launcher . | . . . . . . . . . Special Weapon 1 | . . . . . . 1 . . Impact Weapon 1 | . . . . . . 1 . . Slashing Weapon 1 | . . . . . . 1 . . Piercing Weapon . | . . . . . . . . . Special Melee Weapon . | . . . . . . . . . Unidentified Prototypes 8 | . 1 1 . . 6 . . . Parts Lost 23 | . . . . . 1 13 . 9 Power 6 | . . . . . . 4 . 2 Propulsion 8 | . . . . . . 4 . 4 Utility 3 | . . . . . . 2 . 1 Weapon 6 | . . . . . 1 3 . 2 Highest Loss Streak 8 | . . . . . 1 8 . 6 To Critical Strikes 2 | . . . . . . 1 . 1 Average Backups 10 | 3 6 9 8 9 9 11 13 14 Power . | . 1 1 . . . . . . Propulsion . | 1 2 2 1 . . . . . Utility 4 | . . 1 2 4 4 6 7 9 Weapon 3 | . 2 4 4 3 4 3 4 3 Tool/Special . | . . . . . . . . . Unused Backups 21 | . . . . 1 5 2 . 13 Power 1 | . . . . . . 1 . . Propulsion 2 | . . . . 1 . 1 . . Utility 15 | . . . . . 4 . . 11 Weapon 1 | . . . . . 1 . . . Tool/Special 2 | . . . . . . . . 2 Average Slot Usage (%) 81 | . 43 73 83 87 94 72 75 81 Engine 6 | . . . 11 6 11 3 . . Core 5 | . . . . 6 3 7 16 15 Leg 4 | . . . 3 24 . 2 . . Hover 14 | . . . . 6 30 14 30 18 Flight 8 | . 17 37 30 . . . . . Device 10 | . . 11 12 12 15 8 . 8 Storage 9 | . 7 12 12 12 8 8 8 8 Processor 4 | . . . . . 7 8 8 8 Protection 1 | . . . . . . 3 8 2 Energy Gun 13 | . 10 10 12 18 15 10 2 14 Peak Build Rating 50 | 2 11 18 34 29 50 39 41 44 Average Rating 29 | 1 5 17 19 21 44 30 34 38 On Entrance 19 | . 2 8 18 16 28 38 28 37 Avg Prop Armor Cover (%) 2 | . . . . . 2 . . . Naked Turns . | . . . . . . . . . Heaviest Build 44 | 3 13 12 15 21 35 44 39 40 Greatest Support 36 | 3 12 12 30 30 36 24 36 36 Greatest Overweight (x) 11 | . 4 . 4 6 1 11 1 2 Average Overweight (x) . | . . . . . . 1 . 1 Largest Inventory Capacity 15 | 5 10 10 10 10 10 15 15 15 Average Capacity 11 | 5 8 10 10 10 10 14 15 15 Most Carried 15 | 5 10 10 10 10 10 15 15 15 Average Carried 10 | 3 5 9 8 9 9 11 13 14 Final Capacity 15 | 5 10 10 10 10 10 15 15 15 Final Carried 15 | 5 10 10 10 10 10 13 15 14 Class Distribution -------------------- 51% | Hacker-Mutant 12% | Hacker-Skirmisher 11% | Hacker-Sprinter 10% | Hacker-Scout 8% | Scavenger-Mutant 5% | Bothacker-Mutant Dominant Class ---------------- Hacker-Mutant | -10/Materials Hacker-Sprinter | -10/Mines Hacker-Mutant | -10/Exiles Hacker-Mutant | -9/Mines Hacker-Mutant | -8/Materials Hacker-Mutant | -8/Garrison Scavenger-Mutant | -8/Materials Bothacker-Mutant | -8/Garrison Resources | -11 -10 -10 -10 -9 -8 -8 -8 -8 ----------- Run | Yrd Mat Min Exi Min Mat Gar Mat Gar Matter Collected 1063 | 216 91 20 30 100 314 165 60 67 Remotely . | . . . . . . . . . Salvage Created 2540 | . 127 21 . 83 967 806 120 416 Parts 118 | . 8 4 . 6 45 34 6 15 Haulers Intercepted 6 | . . . . . 6 . . . Recyclers Shooed 1 | . 1 . . . . . . . Parts Field Recycled . | . . . . . . . . . Retrieved Matter . | . . . . . . . . . Parts Self-Destructed . | . . . . . . . . . Prevented . | . . . . . . . . . Parts Restored . | . . . . . . . . . Kills | -11 -10 -10 -10 -9 -8 -8 -8 -8 ------- Run | Yrd Mat Min Exi Min Mat Gar Mat Gar Combat Hostiles Destroyed 43 | . 4 2 . 3 8 16 2 8 Melee 1 | . . . . . . 1 . . Guns 39 | . 4 2 . 3 8 12 2 8 Cannons 1 | . . . . . . 1 . . AOE 1 | . . . . . . 1 . . Classes Destroyed 11 | . 2 . . 1 5 3 . . Builder 1 | . . . . . 1 . . . Hauler 6 | . . . . . 6 . . . Operator 2 | . . . . . 2 . . . Watcher 4 | . . . . . 4 . . . Swarmer 6 | . 2 2 . 2 . . . . Cutter 1 | . . . . . . 1 . . Grunt 14 | . 2 . . . 2 7 . 3 Duelist 3 | . . . . 1 1 1 . . Sentry 8 | . . . . . 5 2 1 . Hunter 4 | . . . . . . 2 1 1 Programmer 7 | . . . . . . 3 . 4 Best Kill Streak 5 | . 2 2 . 2 5 3 2 5 Combat Bots Only 5 | . 2 2 . 2 2 3 2 5 Max Kills in Single Turn 2 | . 1 1 . 1 2 1 1 1 Gunslinging . | . . . . . . . . . Exploded 1 | . . . . . . 1 . . Melee 1 | . . . . . . 1 . . Uniques/NPCs Destroyed . | . . . . . . . . . Combat | -11 -10 -10 -10 -9 -8 -8 -8 -8 -------- Run | Yrd Mat Min Exi Min Mat Gar Mat Gar Hostile Shots Fired 340 | . 17 9 . 16 37 161 10 90 Missed 100 | . 6 5 . 7 10 42 4 26 Hits 240 | . 11 4 . 9 27 119 6 64 Melee 8 | . . . . 2 1 5 . . Projectile 232 | . 11 4 . 7 26 114 6 64 AOE 2 | . . . . . . 2 . . Critical Strikes 14 | . 1 . . . 2 9 . 2 Actively Blocked 2 | . . . . . . 1 . 1 Part Disruptions 1 | . . . . . . . . 1 Damage Taken 2410 | . 88 20 . 68 343 1257 32 602 Core 577 | . 15 5 . 6 86 307 . 158 Absorbed by Shields . | . . . . . . . . . Redirected to Shielding 37 | . . . . . . 24 . 13 Ignored by Resistances 1472 | . 55 14 . 46 203 766 20 368 Core Remaining (%) 94 | 100 . . . 89 . . . . Volleys Fired 186 | . 9 7 . 6 52 63 2 47 Largest 2 | . 2 1 . 2 2 2 2 2 Hottest 161 | . 70 40 . 85 111 161 105 105 Shots Fired 306 | . 16 7 . 11 91 113 4 64 Gun 289 | . 16 7 . 11 91 96 4 64 Cannon . | . . . . . . . . . Launcher . | . . . . . . . . . Special 17 | . . . . . . 17 . . Kinetic 10 | . 7 . . . . . . 3 Thermal 192 | . 7 7 . 6 49 77 2 44 Explosive . | . . . . . . . . . Electromagnetic 104 | . 2 . . 5 42 36 2 17 Robot Hit Streak 38 | . 14 3 . 8 25 28 19 38 Robot Miss Streak 1 | . 1 1 . 1 1 1 . 1 Penetration Max . | . . . . . . . . . Secondary Targets 4 | . . . . 1 1 1 . 1 Max Gunslinging Chain 1 | . . . . 1 1 1 . 1 Shots Hit Robots 228 | . 16 5 . 10 82 68 4 43 Core Hits 115 | . 7 2 . 5 41 38 4 18 Critical Kills . | . . . . . . . . . Critical Parts Destroyed 1 | . . . . . . 1 . . Critical Strikes 10 | . 1 . . . 5 3 1 . Burn 9 | . 1 . . . 5 2 1 . Smash 1 | . . . . . . 1 . . Melee Attacks 4 | . . . . . . 4 . . Impact 2 | . . . . . . 2 . . Slashing 2 | . . . . . . 2 . . Piercing . | . . . . . . . . . Sneak Attacks . | . . . . . . . . . Combat Hostiles . | . . . . . . . . . Follow-up Attacks 1 | . . . . . . 1 . . Damage Inflicted 4745 | . 177 55 . 110 1859 1581 73 890 Guns 4175 | . 177 55 . 110 1668 1202 73 890 Cannons . | . . . . . . . . . Explosions 384 | . . . . . 185 199 . . Melee 132 | . . . . . . 132 . . Ramming 6 | . . . . . 6 . . . Kinetic 129 | . 58 . . . . . . 71 Thermal 2726 | . 89 55 . 54 866 900 37 725 Explosive . | . . . . . . . . . Electromagnetic 1752 | . 30 . . 56 987 549 36 94 Impact 98 | . . . . . . 98 . . Slashing 34 | . . . . . . 34 . . Piercing . | . . . . . . . . . Highest Corruption 9 | . . . . . . 3 3 9 Average Corruption 4 | . . . . . . 2 3 6 Corruption Purged . | . . . . . . . . . Corruption Blocked . | . . . . . . . . . Effects 17 | . . . . . . 6 2 9 Message Errors 4 | . . . . . . 2 . 2 Matter Fused 2 | . . . . . . . 1 1 Heat Flow Errors 2 | . . . . . . 1 1 . Energy Discharges 2 | . . . . . . 2 . . Data Loss (minor) 1 | . . . . . . . . 1 Data Loss (major) 2 | . . . . . . . . 2 Misfires 3 | . . . . . . 1 . 2 Alerts 1 | . . . . . . . . 1 Overload Shots . | . . . . . . . . . Overflow Damage 73 | . . . . . 25 48 . . Projectiles . | . . . . . . . . . Explosions 25 | . . . . . 25 . . . Melee 48 | . . . . . . 48 . . Knockbacks 1 | . . . . . . 1 . . Impact 1 | . . . . . . 1 . . Kinetic . | . . . . . . . . . Secondary . | . . . . . . . . . Self-Inflicted Damage 133 | . . . . . 80 53 . . Shots 5 | . . . . . 3 2 . . Rammed 2 | . . . . . 2 . . . Targets Rammed 2 | . . . . . 2 . . . Kicked . | . . . . . . . . . Crushed . | . . . . . . . . . Highest Temperature 427 | . 112 1 . 72 427 156 278 144 Average Temperature 117 | . 66 1 . 34 175 49 95 58 Received Heat Transfer 870 | . 87 . . . 162 432 . 189 Effects 6 | . . . . . 5 . 1 . Shutdowns 1 | . . . . . 1 . . . Energy Bleed 2 | . . . . . 1 . 1 . Matter Decay 2 | . . . . . 2 . . . Short Circuit 1 | . . . . . 1 . . . Siege Activations . | . . . . . . . . . Martial Activations . | . . . . . . . . . Shielding Activations . | . . . . . . . . . Robots Disrupted . | . . . . . . . . . Combat Hostiles . | . . . . . . . . . Robots Corrupted 1 | . . . . . . 1 . . Combat Hostiles 1 | . . . . . . 1 . . Parts Fried 9 | . . . . . 5 4 . . Impact Corruptions 2 | . . . . . . 2 . . Robots Melted . | . . . . . . . . . Combat Hostiles . | . . . . . . . . . Parts Melted 10 | . 1 . . . 2 2 1 4 Heat Transferred 5682 | . 333 125 . 125 2063 1669 148 1219 Parts Sabotaged . | . . . . . . . . . Parts Stolen . | . . . . . . . . . Parts Stripped . | . . . . . . . . . Power Chain Reactions 5 | . . . . . 3 2 . . Alert | -11 -10 -10 -10 -9 -8 -8 -8 -8 ------- Run | Yrd Mat Min Exi Min Mat Gar Mat Gar Maximum Alert Level 1 | . . . . . . 1 . 1 Low Security (%) 81 | 100 100 100 . 100 100 47 100 46 Level 1 18 | . . . . . . 52 . 53 Level 2 . | . . . . . . . . . Level 3 . | . . . . . . . . . Level 4 . | . . . . . . . . . Level 5 . | . . . . . . . . . High Security . | . . . . . . . . . Max Security . | . . . . . . . . . Peak Influence 386 | . 55 50 . 73 56 386 139 268 Initial 137 | . . 6 . . . . 137 38 Average 76 | . 20 3 . 5 8 196 104 175 Influence Increases 1540 | . 100 50 . 123 349 536 62 320 Destroy 0b10 Robot/C 920 | . 80 40 . 100 160 340 40 160 Destroy 0b10 Robot/NC 65 | . . . . . 65 . . . Destroy Leader 200 | . 20 10 . 20 80 30 20 20 Allied During Kill 3 | . . . . 3 . . . . Successful Hack 34 | . . . . . 12 20 2 . Disable Machine 16 | . . . . . 16 . . . Anti-Garrison Action 50 | . . . . . . . . 50 Destroy Structure 72 | . . . . . 16 56 . . Lose Combat Pursuer 180 | . . . . . . 90 . 90 Influence Decreases 1272 | . 75 75 . 123 349 150 369 131 Entered New Map 309 | . . 19 . . . . 249 41 Time Decay 675 | . 75 56 . 83 341 . 120 . Lost Part 228 | . . . . . 8 130 . 90 Lost Ally 60 | . . . . 40 . 20 . . Squads Dispatched 2 | . . . . 1 . . 1 . Investigation 2 | . . . . 1 . . 1 . Extermination . | . . . . . . . . . Reinforcement . | . . . . . . . . . Assault . | . . . . . . . . . Garrison . | . . . . . . . . . Intercept . | . . . . . . . . . Searches Triggered . | . . . . . . . . . Construction Impeded . | . . . . . . . . . Haulers Reinforced . | . . . . . . . . . Active Scanning Responses . | . . . . . . . . . Cargo Convoy Interrupts . | . . . . . . . . . Stealth | -11 -10 -10 -10 -9 -8 -8 -8 -8 --------- Run | Yrd Mat Min Exi Min Mat Gar Mat Gar Distress Signals 3 | . . . . . 2 . 1 . Communications Jammed . | . . . . . . . . . Distress Signals . | . . . . . . . . . Times Spotted 70 | . 4 3 . 5 21 19 5 13 Peak Tracking Total 20 | . 2 20 . 3 3 7 3 8 Tactical Retreats 7 | . . 1 . . . 3 . 3 Traps | -11 -10 -10 -10 -9 -8 -8 -8 -8 ------- Run | Yrd Mat Min Exi Min Mat Gar Mat Gar Traps Triggered 6 | . . . . . 3 . . 3 Indirectly . | . . . . . . . . . Trap Hack Attempts . | . . . . . . . . . Triggered . | . . . . . . . . . Disarmed 6 | . 6 . . . . . . . Reprogrammed . | . . . . . . . . . Reused . | . . . . . . . . . Traps Extracted . | . . . . . . . . . Installed . | . . . . . . . . . Triggered . | . . . . . . . . . Machines | -11 -10 -10 -10 -9 -8 -8 -8 -8 ---------- Run | Yrd Mat Min Exi Min Mat Gar Mat Gar Machines Disabled 6 | . . . . . 4 1 . 1 Max in Single Turn 3 | . . . . . 3 1 . 1 Garrison Relay 2 | . . . . . . 1 . 1 Machines Repaired . | . . . . . . . . . Machines Dismantled . | . . . . . . . . . Machines Sabotaged . | . . . . . . . . . Overloaded Fab Kills . | . . . . . . . . . Hacking | -11 -10 -10 -10 -9 -8 -8 -8 -8 --------- Run | Yrd Mat Min Exi Min Mat Gar Mat Gar Machines Accessed 25 | . 2 . 5 1 9 3 5 . Terminals 15 | . 2 . . . 7 3 3 . Fabricators . | . . . . . . . . . Repair Stations . | . . . . . . . . . Recycling Units . | . . . . . . . . . Scanalyzers 2 | . . . . . 1 . 1 . Garrison Access 2 | . . . . . 1 . 1 . Total Hacks 100 | . 5 . 50 1 23 5 16 . Successful 85 | . 2 . 50 1 17 3 12 . Failed 15 | . 3 . . . 6 2 4 . Catastrophic . | . . . . . . . . . Database Lockouts . | . . . . . . . . . Manual 2 | . . . 1 . 1 . . . Terminals 39 | . 5 . . . 18 5 11 . Fabricators . | . . . . . . . . . Repair Stations . | . . . . . . . . . Recycling Units . | . . . . . . . . . Scanalyzers 7 | . . . . . 4 . 3 . Garrison Access 3 | . . . . . 1 . 2 . Terminal Hacks 75 | . 2 . 50 1 12 3 7 . Record 49 | . . . 49 . . . . . Robot Analysis 2 | . . . . . 2 . . . Prototype ID Bank 1 | . . . . . . . 1 . Open Door 2 | . . . . 1 . 1 . . Level Access Points 1 | . . . . . 1 . . . Branch Access Points 1 | . . . . . 1 . . . Emergency Access Points 4 | . . . . . 2 1 1 . Disarm Traps 1 | . 1 . . . . . . . Maintenance Status 3 | . . . . . 1 . 2 . Transport Status 1 | . . . . . 1 . . . Reinforcement Status 1 | . . . . . . . 1 . Recall Investigation 1 | . . . . . . . 1 . Registered Components 2 | . . . . . 1 . 1 . Zone Layout 4 | . 1 . . . 3 . . . Garrison Registry 1 | . . . . . . 1 . . Proto ID Catalog 1 | . . . 1 . . . . . Fabricator Hacks . | . . . . . . . . . Repair Station Hacks . | . . . . . . . . . Recycling Unit Hacks . | . . . . . . . . . Scanalyzer 7 | . . . . . 4 . 3 . Insert Component 2 | . . . . . 2 . . . Analyze 2 | . . . . . 2 . . . Retrieve Study 3 | . . . . . . . 3 . Garrison Access Hacks 3 | . . . . . 1 . 2 . Unlock Access 2 | . . . . . 1 . 1 . Coupler Status 1 | . . . . . . . 1 . Unauthorized Hacks . | . . . . . . . . . Terminals . | . . . . . . . . . Fabricators . | . . . . . . . . . Repair Stations . | . . . . . . . . . Recycling Units . | . . . . . . . . . Scanalyzers . | . . . . . . . . . Garrison Access . | . . . . . . . . . Data Cores Recovered 1 | . . . . . 1 . . . Used . | . . . . . . . . . Hacking Detections 16 | . 2 . . . 7 2 5 . Full Trace Events 2 | . 1 . . . . . 1 . Feedback Events . | . . . . . . . . . Feedback Blocked . | . . . . . . . . . Robot Schematics Acquired . | . . . . . . . . . Robots Built . | . . . . . . . . . Authchips . | . . . . . . . . . Time . | . . . . . . . . . Total Robot Build Rating . | . . . . . . . . . Part Schematics Acquired 2 | . . . . . 2 . . . Parts Built . | . . . . . . . . . Authchips . | . . . . . . . . . Time . | . . . . . . . . . Total Part Build Rating . | . . . . . . . . . Part Studies Acquired 3 | . . . . . . . 3 . Parts Repaired . | . . . . . . . . . Time . | . . . . . . . . . Parts Recycled . | . . . . . . . . . Recycled Matter . | . . . . . . . . . Retrieved Matter . | . . . . . . . . . Retrieved Components . | . . . . . . . . . Parts Scanalyzed 2 | . . . . . 2 . . . Part Schematics Acquired 2 | . . . . . 2 . . . Parts Damaged . | . . . . . . . . . Bothacking | -11 -10 -10 -10 -9 -8 -8 -8 -8 ------------ Run | Yrd Mat Min Exi Min Mat Gar Mat Gar Used RIF Installer 2 | . . . . . . 2 . . Alert ID Control 1 | . . . . . . 1 . . Robots Hacked . | . . . . . . . . . Non-combat . | . . . . . . . . . Combat . | . . . . . . . . . Robot Hacks Applied . | . . . . . . . . . Relay Couplers Released 6 | . . . . . . 3 . 3 Machine Destruction 6 | . . . . . . 3 . 3 Attached 1 | . . . . . . . . 1 Fabnet Peak Effective % . | . . . . . . . . . Robots Rewired . | . . . . . . . . . Allies Hacked . | . . . . . . . . . Hacks Repelled . | . . . . . . . . . Allies | -11 -10 -10 -10 -9 -8 -8 -8 -8 -------- Run | Yrd Mat Min Exi Min Mat Gar Mat Gar Total Allies 4 | . . 3 . . . 1 . . Largest Group 3 | . . 3 3 3 1 1 . . Highest-Rated Group 40 | . . 40 40 40 8 31 . . Highest-Rated Ally 31 | . . 16 16 16 8 31 . . Total Orders . | . . . . . . . . . Ally Attacks 20 | . . . . 11 . 9 . . Total Damage 290 | . . . . 144 . 146 . . Kills 3 | . . . . 2 . 1 . . Allies Corrupted . | . . . . . . . . . Allies Melted . | . . . . . . . . . Intel | -11 -10 -10 -10 -9 -8 -8 -8 -8 ------- Run | Yrd Mat Min Exi Min Mat Gar Mat Gar Active Infowar (turns) 4818 | . . 492 765 655 1228 1146 176 356 Sensors 2661 | . . 492 765 655 749 . . . Structural 226 | . . . . . 226 . . . T.N.C. 2851 | . . . . . 1173 1146 176 356 Robot Analysis Total 2 | . . . . . 2 . . . Derelict Logs Recovered 2 | . . 1 . 1 . . . . Drone Launches . | . . . . . . . . . Drone Recoveries . | . . . . . . . . . Exploration | -11 -10 -10 -10 -9 -8 -8 -8 -8 ------------- Run | Yrd Mat Min Exi Min Mat Gar Mat Gar Turns Passed 4994 | 28 136 504 765 655 1228 1146 176 356 Spaces Moved 4023 | 39 152 687 713 503 986 590 206 147 Core 101 | 39 56 . 3 1 . 2 . . Treads . | . . . . . . . . . Legs 533 | . . . 93 315 . 125 . . Wheels . | . . . . . . . . . Hover 1989 | . . . . 187 986 463 206 147 Flight 1400 | . 96 687 617 . . . . . Fastest Speed 29 | 50 29 29 29 66 50 108 48 48 Average Speed 86 | 50 59 29 97 100 85 138 57 128 Slowest Speed 600 | 50 275 29 250 350 111 600 116 176 Overloaded Moves . | . . . . . . . . . Propulsion Burnouts . | . . . . . . . . . Robots Hopped 1 | . . 1 . . . . . . Potential Cave-ins . | . . . . . . . . . Cave-ins Triggered . | . . . . . . . . . Exploration Rate (%) 52 | 4 32 94 78 97 74 63 17 16 Regions Visited 8 Branch Regions 3 Pre-discovered Areas 1 | . . . 1 . . . . . Known Exits Taken 7 | 1 1 1 1 1 1 . 1 . Unknown Exits Taken . | . . . . . . . . . Scrap Searched 2 | . . 1 . 1 . . . . Spaces Dug . | . . . . . . . . . Terrain Destroyed 27 | . . . . . 14 13 . . Melee . | . . . . . . . . . Projectile . | . . . . . . . . . AOE 27 | . . . . . 14 13 . . Terrain Rammed . | . . . . . . . . . Walls Destroyed . | . . . . . . . . . Machines Disabled . | . . . . . . . . . Actions | -11 -10 -10 -10 -9 -8 -8 -8 -8 --------- Run | Yrd Mat Min Exi Min Mat Gar Mat Gar Total 5200 | 45 185 982 785 644 1281 766 260 252 Wait 768 | . . 287 54 116 199 69 35 8 Move 4015 | 38 151 684 712 502 986 589 206 147 Hop 1 | . . 1 . . . . . . Pick Up 58 | 5 9 1 3 5 8 18 5 4 Fast Attach 24 | 2 . 1 4 2 11 1 2 1 Attach 38 | . 8 1 3 2 3 13 4 4 Detach 15 | . 6 . 2 1 1 2 2 1 Swap 13 | . . . . 2 5 4 2 . Drop 38 | . 2 . 7 8 14 4 2 1 Fire 186 | . 9 7 . 6 52 63 2 47 Melee 3 | . . . . . . 3 . . Ram 2 | . . . . . 2 . . . Kick . | . . . . . . . . . Crush . | . . . . . . . . . Escape Stasis 39 | . . . . . . . . 39 Rewire . | . . . . . . . . . Trap . | . . . . . . . . . Miscellaneous . | . . . . . . . . . Route ------- -11/Scrapyard -10/Materials -10/Mines (discovered 2 exits: *Mat / *Exi) -10/Exiles -9/Mines (discovered 2 exits: *Mat x2) -8/Materials (discovered 4 exits: *Fac x3 / Gar) -8/Garrison (discovered 3 exits: *Mat x3) -8/Materials -8/Garrison History --------- Turn | Location | Event 7 | -11/Scrapyard | Identified exit to Materials 7 | -11/Scrapyard | Discovered exit to Materials (range 15) 29 | -11/Scrapyard | Entered Materials 29 | -10/Materials | Evolved 1 slot: Propulsion x1 152 | -10/Materials | Identified exit to Mines 152 | -10/Materials | Discovered exit to Mines (range 13) 165 | -10/Materials | Entered Mines 177 | -10/Mines | Found a damaged Exp. Sensor Array with a note attached 177 | -10/Mines | Found Prototype Device 177 | -10/Mines | Identified Exp. Sensor Array 231 | -10/Mines | Learned Materials garrison access intel 292 | -10/Mines | Assembled infested the area 436 | -10/Mines | Build established: Hacker-Sprinter 540 | -10/Mines | YI-UF0 nonchalantly dropped a Grenade Launcher on the ground 545 | -10/Mines | Assisted by bots powering up and referring to "LRC-V3" 568 | -10/Mines | Found a hidden stash of uninstalled traps 617 | -10/Mines | Identified exit to Materials 617 | -10/Mines | Discovered exit to Materials (range 5) 640 | -10/Mines | Identified exit to Exiles 640 | -10/Mines | Discovered exit to Exiles (range 5) 669 | -10/Mines | Entered Exiles 669 | -10/Exiles | Accompanied by 3 allies 678 | -10/Exiles | Met 8R-AWN 682 | -10/Exiles | Met EX-HEX 691 | -10/Exiles | Met EX-BIN 696 | -10/Exiles | Aligned with FarCom system 696 | -10/Exiles | Given EX-Vault access code 703 | -10/Exiles | Opened EX-Vault 706 | -10/Exiles | Found Modified TNC 785 | -10/Exiles | Warned to stay clear of 0b10 Research branches 822 | -10/Exiles | Met EX-DEC 866 | -10/Exiles | Visited The Gauntlet 947 | -10/Exiles | Identified exit to Mines 947 | -10/Exiles | Discovered exit to Mines (range 14) 1015 | -10/Exiles | Build established: Hacker-Mutant 1220 | -10/Exiles | Learned location of Zion (-7) 1307 | -10/Exiles | Found Potential Leg 1310 | -10/Exiles | Found Potential Leg 1434 | -10/Exiles | Left Exiles lab with Modified TNC 1434 | -10/Exiles | Entered Mines 1434 | -9/Mines | Accompanied by 3 allies 1524 | -9/Mines | Identified exit to Materials 1524 | -9/Mines | Discovered exit to Materials (range 5) 1785 | -9/Mines | Learned 2 Materials zone layouts 1791 | -9/Mines | Discovered exit to Materials (range 5) 1893 | -9/Mines | Met a Derelict shopkeep closing up shop 1960 | -9/Mines | Received a Rocket Launcher from a helpful Derelict 2089 | -9/Mines | Entered Materials 2089 | -8/Materials | Accompanied by 1 ally 2089 | -8/Materials | Evolved 4 slots: Power x1, Propulsion x1, Utility x2 2091 | -8/Materials | Loaded intel: 1 garrison access location 2225 | -8/Materials | Build established: Hacker-Scout 2287 | -8/Materials | Identified exit to Factory 2738 | -8/Materials | Build established: Hacker-Skirmisher 3151 | -8/Materials | Build established: Hacker-Mutant 3317 | -8/Materials | Identified exit to Garrison 3317 | -8/Materials | Entered Garrison 3419 | -8/Garrison | Triggered checkpoint 3424 | -8/Garrison | Garrison Relay disabled 3479 | -8/Garrison | Installed Relay Interface Framework 3686 | -8/Garrison | Rescued a captive Derelict 3704 | -8/Garrison | Identified exit to Materials 3704 | -8/Garrison | Discovered exit to Materials (range 63) 3704 | -8/Garrison | Discovered exit to Materials (range 31) 3704 | -8/Garrison | Discovered exit to Materials (range 72) 3929 | -8/Garrison | Triggered checkpoint 3955 | -8/Garrison | Lost 8 parts (1p4n1u2w) 3980 | -8/Garrison | Core integrity fell below 50% 4015 | -8/Garrison | Lost 3 parts (2p1u) 4293 | -8/Garrison | Expanded RIF knowledge: Alert ID Control 4463 | -8/Garrison | Entered Materials 4606 | -8/Materials | Build established: Scavenger-Mutant 4639 | -8/Materials | Identified exit to Garrison 4639 | -8/Materials | Entered Garrison 4665 | -8/Garrison | Triggered checkpoint 4712 | -8/Garrison | Core integrity fell below 20% 4805 | -8/Garrison | Garrison Relay disabled 4907 | -8/Garrison | Triggered checkpoint 4995 | -8/Garrison | Destroyed by Y-45 Defender with Beam Rifle Last Messages --------------- Shock Rifle+. 04963_ System corrupted: Shock Rifle+ misfires. 04967_ Slug penetrates Wall. 04973_ Penetrated by Slug. 04976_ H-55 Commando destroyed. 04976_ Switching to secondary target: Y-45 Defender. 04976_ Shock Rifle+ destroyed. 04979_ Mic. Nuclear Core destroyed. 04979_ Gravmag System destroyed. 04983_ P-60 Hacker destroyed. 04985_ Airjet+ destroyed. 04985_ Mic. Nuclear Core destroyed. 04989_ Critical hit (Destroy). 04989_ Hvy. Particle Gun destroyed. 04990_ Slug penetrates P-60 Hacker. 04992_ P-60 Hacker suffers critical hit (Burn). 04994_ Slug penetrates P-60 Hacker. 04995_ P-60 Hacker heat damages Target Analyzer, Gravmag System, Shock Rifle, Gravmag System. Map ----- +----------------------------------------------------+ | ?????????????????????????#!#?????????????????????? | | ?????????????????????#####!#?????????????????????? | | ?????????????????????# #[#?????????????????????? | | ????????????????###### # #?????????????????????? | | ?????######???### *!#?????????????????????? | | ?????# #???#"# ########%#?????????????????????? | | ?????# #???#"! #??????#=#?????????????????????? | | ?????# #???# #??????# #?????????????????????? | | ?????### #???#"! #??????# #?????????????????????? | | ???????# #???#"# #??????# #?????????????????????? | | ???????# #???#####??????# #?????????????????????? | | ???????# #??????????????#[#?????????????????????? | | ???????# #??????????????#%#?????????????????????? | | ???????# #######+########!#######???????????????? | | ???????# #???????????????? | | ???????# #???????????????? | | ???????############## ######## #???????????????? | | ????????????????????# #???????? #???????????????? | | ????????????????????# #?????????????????????????? | | ????????????????????# #?????????????????????????? | | ????????????????????# #?????????????????????????? | | ????????????????????# #?????????????????????????? | | ????????????????????# #???#???? #???????????????? | | ????????????????????# #??%#??? ##""""###???????? | | ????????????????????# ###+### g ??????? | | ????????????????????# @^^^p ??????? | | ????????????????????# [ g! Y ??????? | | ????????????????????########## ## #?????????? | | ???????????????????????????????? #???????????????? | | ?????????????????????????????????????????????????? | | ?????????????????????????????????????????????????? | | ?????????????????????????????????????????????????? | | ?????????????????????????????????????????????????? | | ?????????????????????????????????????????????????? | | ?????????????????????????????????????????????????? | | ?????????????????????????????????????????????????? | | ?????????????????????????????????????????????????? | | ?????????????????????????????????????????????????? | | ?????????????????????????????????????????????????? | | ???????????????????????????????????YY????????????? | | ?????????????????????????????????????????????????? | | ?????????????????????????????????????????????????? | | ?????????????????????????????????????????????????? | | ?????????????????????????????????????????????????? | | ?????????????????????????????????????????????????? | | ?????????????????????????????????????????????????? | | ?????????????????????????????????????????????????? | | ?????????????????????????????????????????????????? | | ?????????????????????????????????????????????????? | | ?????????????????????????????????????????????????? | +----------------------------------------------------+ Best States ------------- Heat Dissipation 59 Energy Generation 25 Energy Capacity 460 Matter Stores 300 Matter Capacity 300 Sight Range 16 Robot Scan Range 20 Terrain Scan Density 10 Base Temperature (-) 100 Resistance: KI 35 Resistance: TH 35 Resistance: EX 35 Resistance: EM 35 Resistance: I 35 Resistance: S 35 Resistance: P 35 Core Shielding 20 Evasion (%) 64 Offensive Hacking 30 Item Schematics ----------------- Mining Laser | -8/Materials | Scanalyzed Hcp. Storage Unit | -8/Materials | Scanalyzed Robot Schematics ------------------ None Fabricated ------------ Nothing Repaired ---------- Nothing Studied --------- Airjet | -8/Materials | Hacked Plasma Cutter | -8/Materials | Hacked Shock Rifle | -8/Materials | Hacked Alien Tech Used ----------------- None Achievements -------------- Hammer Time Challenges ------------ None Game ------ Seed ArmoredMatterTurbovents Manual? 0 Play Time 00:48:13 Cumulative 115.0 hours Start 2025.11.19 @ 10:17:41 End 2025.11.19 @ 11:04:05 Sessions 1 Manual Loads 0 Difficulty Explorer Special Mode None Game No. 131 Rogue 0 Adventurer 0 Explorer 131 Win Type - Total 0 Types 0/0/0/0/0/0/0/0/0/0 Lore% 64 Gallery% 63 Achievement% 49 Wizard Run 0 Options --------- Layout 1 ASCII 0 Keyboard 0 Movement Mouse Keybinds 0 Fullscreen 1 Font 24/Smallcaps Map View 50x35 Zoom Use 0% Tactical HUD 1 Map Filters NONE Filters NONE Steam 1 RUN: feb56593-f03a-4e97-a8fe-780b8ae1c14d